bitfinex-derivatives/quotes_SOLF0:USTF0_20260213
["timestamp","ask_amount","ask_price","bid_price","bid_amount"]
[1770978742712,11.69876832,80.091,80.058,11.2501]
[1770978743102,11.69876832,80.091,80.058,22.81358337]
[1770978744613,11.69876832,80.091,80.059,11.56348337]
[1770978745402,11.69876832,80.091,80.047,11.56348337]
[1770978745609,11.69876832,80.085,80.031,11.56348337]
[1770978746411,22.4857,80.111,80.036,11.2533]
[1770978746412,11.69876832,80.072,80.036,11.2533]
[1770978747713,22.94626832,80.078,80.041,11.56348337]
[1770978747918,11.69876832,80.077,80.031,11.56348337]
[1770978748813,11.69876832,80.074,80.034,11.2536]
[1770978749816,11.69876832,80.074,80.037,11.56348337]
[1770978750821,11.69876832,80.074,80.03,3.19469845]
[1770978750822,11.69876832,80.074,80.038,11.253]
[1770978751216,11.2483,80.073,80.031,11.2539]
[1770978751424,21.31968193,80.073,80.031,21.49286155]
[1770978751622,10.07138193,80.072,80.031,21.49286155]
[1770978751822,10.07138193,80.072,80.032,10.23896155]
[1770978752714,10.07138193,80.072,80.034,11.2536]
[1770978754614,10.07138193,80.072,80.034,21.49256155]
[1770978754815,10.07138193,80.072,80.038,10.23896155]
[1770978755822,10.23044598,80.07,80.03,14.44879845]
[1770978756026,10.23044598,80.07,80.03,11.2541]
[1770978756227,10.23044598,80.07,80.03,3.19469845]
[1770978756428,10.23044598,80.07,80.03,14.09708046]
[1770978756626,10.23044598,80.07,80.031,10.90238201]
[1770978757329,10.23044598,80.109,80.061,10.90238201]
[1770978757526,10.23044598,80.109,80.07,3.19469845]
[1770978757725,11.2449,80.097,80.071,10.90238201]
[1770978758028,11.2449,80.097,80.06,22.15218201]
[1770978758229,11.2452,80.094,80.06,25.34688046]
[1770978758430,10.23044598,80.093,80.06,14.09708046]
[1770978758931,10.23044598,80.093,80.061,11.2498]
[1770978759233,10.23044598,80.093,80.06,3.19469845]
[1770978759427,10.23044598,80.093,80.07,3.19469845]
[1770978760432,10.23044598,80.093,80.06,14.09708046]
[1770978764833,10.23044598,80.09,80.06,3.19469845]
[1770978768236,22.4808,80.129,80.08,3.19469845]
[1770978768237,10.23044598,80.116,80.08,3.19469845]
[1770978768632,11.2438,80.104,80.075,10.90238201]
[1770978768837,10.23044598,80.116,80.075,10.90238201]
[1770978769132,10.23044598,80.116,80.07,3.19469845]
[1770978769737,11.2447,80.098,80.07,3.19469845]
[1770978770134,10.23044598,80.129,80.071,10.90238201]
[1770978770335,11.2431,80.109,80.08,3.19469845]
[1770978770733,134.28,80.128,80.08,3.19469845]
[1770978770734,10.23044598,80.108,80.08,3.19469845]
[1770978770934,10.23044598,80.108,80.071,10.90238201]
[1770978771336,10.23044598,80.108,80.08,3.19469845]
[1770978772537,11.2434,80.107,80.071,10.90238201]
[1770978772738,10.23044598,80.106,80.071,10.90238201]
[1770978774437,10.23044598,80.104,80.06,14.09708046]
[1770978775442,10.23044598,80.104,80.063,11.2495]
[1770978777239,144.75044598,80.104,80.063,11.2495]
[1770978777440,10.23044598,80.103,80.063,11.2495]
[1770978778440,10.23044598,80.103,80.069,11.2486]
[1770978780842,10.26121449,80.108,80.08,3.19469845]
[1770978781043,11.2436,80.106,80.08,3.19469845]
[1770978781236,10.26121449,80.105,80.07,3.19469845]
[1770978781744,10.26121449,80.105,80.072,11.2481]
[1770978782746,11.2427,80.112,80.073,9.67717345]
[1770978783250,11.2436,80.106,80.073,9.67717345]
[1770978784245,11.2439,80.104,80.073,9.67717345]
[1770978784439,10.26121449,80.103,80.07,3.19469845]
[1770978784840,11.245,80.095,80.062,9.67717345]
[1770978785035,10.26121449,80.094,80.056,11.2505]
[1770978786253,146.40121449,80.094,80.056,11.2505]
[1770978786450,10.26121449,80.092,80.056,11.2505]
[1770978786850,146.44121449,80.092,80.056,11.2505]
[1770978787257,10.26121449,80.092,80.056,11.2505]
[1770978787747,10.26121449,80.092,80.06,3.19469845]
[1770978788343,146.74121449,80.092,80.06,3.19469845]
[1770978788554,10.26121449,80.091,80.06,3.19469845]
[1770978790053,11.2436,80.106,80.071,9.67717345]
[1770978790254,10.26121449,80.111,80.071,9.67717345]
[1770978790452,3.19469845,80.13,80.071,9.67717345]
[1770978790453,10.26121449,80.109,80.071,9.67717345]
[1770978790652,10.26121449,80.109,80.07,3.19469845]
[1770978790952,10.26121449,80.096,80.026,9.67717345]
[1770978791158,10.26121449,80.094,80.041,9.67717345]
[1770978791358,10.26121449,80.092,80.041,9.67717345]
[1770978792048,10.26121449,80.081,80.041,9.67717345]
[1770978792253,10.26121449,80.081,80.03,3.19467793]
[1770978792857,10.26121449,80.067,80.03,3.19467793]
[1770978793054,10.26121449,80.089,80.031,9.67717345]
[1770978793261,10.26121449,80.087,80.04,3.19467793]
[1770978793960,10.26121449,80.07,80.02,3.19467793]
[1770978794357,10.26121449,80.068,80.02,12.87185138]
[1770978794558,10.26121449,80.068,80.02,24.12735138]
[1770978794759,10.26121449,80.068,80.021,9.67717345]
[1770978795462,11.2503,80.058,80.022,11.2552]
[1770978795759,11.2503,80.058,80.021,9.67717345]
[1770978798153,10.26121449,80.068,80.024,9.67717345]
[1770978798756,11.249,80.067,80.03,12.87185138]
[1770978799158,11.249,80.067,80.031,9.67717345]
[1770978799461,21.51021449,80.067,80.031,9.67717345]
[1770978800157,10.26121449,80.089,80.041,9.67717345]
[1770978800457,109.94121449,80.089,80.051,9.67717345]
[1770978801251,10.26121449,80.089,80.051,9.67717345]
[1770978801455,10.26121449,80.101,80.052,9.67717345]
[1770978801657,10.26121449,80.101,80.061,9.67717345]
[1770978802859,11.2448,80.097,80.061,9.67717345]
[1770978805163,11.2448,80.097,80.063,9.67717345]
[1770978805362,10.26121449,80.101,80.063,9.67717345]
[1770978806766,11.2445,80.099,80.063,9.67717345]
[1770978808065,11.2445,80.099,80.035,22.85075119]
[1770978808066,11.2432,80.109,80.071,9.67717345]
[1770978808765,10.26121449,80.112,80.08,3.19467793]
[1770978809366,11.2417,80.119,80.081,9.67717345]
[1770978809568,151.0817,80.119,80.081,9.67717345]
[1770978809767,151.0817,80.119,80.082,11.2468]
[1770978809958,11.2417,80.119,80.083,9.67717345]
[1770978810168,10.26121449,80.134,80.091,9.67717345]
[1770978810464,150.52121449,80.133,80.091,9.67717345]
[1770978810865,20.92382591,80.13,80.091,20.92267345]
[1770978813569,9.68362591,80.146,80.101,9.50749603]
[1770978813771,99.66,80.145,80.101,9.50749603]
[1770978813965,99.66,80.145,80.11,3.19305801]
[1770978814165,9.68362591,80.146,80.111,9.50749603]
[1770978815577,9.82569944,80.139,80.096,20.84905592]
[1770978815869,9.82569944,80.139,80.07,99.66]
[1770978815870,9.82569944,80.188,80.121,9.60425592]
[1770978816068,11.2343,80.172,80.135,11.2394]
[1770978816269,11.2343,80.172,80.131,9.60425592]
[1770978816469,21.05999944,80.172,80.131,9.60425592]
[1770978816661,9.82569944,80.171,80.131,9.60425592]
[1770978817871,9.82569944,80.169,80.131,9.60425592]
[1770978818779,9.82569944,80.167,80.131,9.60425592]
[1770978818980,9.82569944,80.167,80.128,11.2403]
[1770978819880,21.06089944,80.166,80.128,11.2403]
[1770978820472,11.2354,80.164,80.128,11.2403]
[1770978820678,9.82569944,80.165,80.128,11.2403]
[1770978821079,9.82569944,80.178,80.132,9.60425592]
[1770978822981,11.2345,80.171,80.135,11.2393]
[1770978823381,22.4611,80.199,80.084,99.64]
[1770978823382,11.2329,80.182,80.143,9.60425592]
[1770978824675,9.82569944,80.189,80.143,9.60425592]
[1770978824877,11.2312,80.194,80.152,9.60425592]
[1770978825078,9.82569944,80.202,80.16,3.19305801]
[1770978825282,9.82569944,80.202,80.161,9.60425592]
[1770978826771,3.19305801,80.21,80.123,22.482]
[1770978826772,3.19305801,80.21,80.163,9.60425592]
[1770978826979,9.82569944,80.214,80.163,9.60425592]
[1770978827477,9.82569944,80.214,80.17,3.19305801]
[1770978827681,9.82569944,80.214,80.18,9.60425592]
[1770978828882,9.82569944,80.214,80.181,11.233]
[1770978829087,11.2279,80.218,80.182,9.60425592]
[1770978830887,9.82569944,80.218,80.182,9.60425592]
[1770978834388,9.82569944,80.216,80.177,11.2335]
[1770978834687,9.82569944,80.216,80.177,20.83775592]
[1770978836187,9.82569944,80.216,80.178,9.60425592]
[1770978836392,9.82569944,80.216,80.184,11.2326]
[1770978836590,12.5,80.282,80.134,99.6]
[1770978836591,9.82569944,80.256,80.191,9.60425592]
[1770978836787,9.82569944,80.229,80.185,11.2324]
[1770978837384,9.82569944,80.227,80.185,11.2324]
[1770978839097,9.82569944,80.227,80.191,11.2315]
[1770978841199,3.19305801,80.22,80.191,11.2315]
[1770978841593,9.82569944,80.227,80.197,11.2306]
[1770978841893,9.82569944,80.227,80.181,9.36875471]
[1770978842397,9.82569944,80.227,80.197,11.2306]
[1770978842793,9.82569944,80.227,80.181,9.36875471]
[1770978843698,9.82569944,80.227,80.19,11.2316]
[1770978843898,9.82569944,80.227,80.181,9.36875471]
[1770978844689,3.19305801,80.23,80.196,11.2308]
[1770978844895,9.17410137,80.248,80.201,9.36875471]
[1770978845293,9.17410137,80.261,80.222,9.36875471]
[1770978846809,9.17410137,80.259,80.222,9.36875471]
[1770978850411,9.17410137,80.259,80.223,11.227]
[1770978850711,12.5,80.34,80.183,22.4653]
[1770978850712,9.17410137,80.277,80.24,3.19305801]
[1770978850906,147.76,80.287,80.241,9.36875471]
[1770978851714,147.94,80.286,80.246,9.36875471]
[1770978851912,3.18005755,80.3,80.251,9.36875471]
[1770978852217,9.17410137,80.302,80.204,22.4594]
[1770978852218,9.17410137,80.302,80.266,9.36875471]
[1770978852418,9.17410137,80.302,80.271,9.36875471]
[1770978853201,9.17410137,80.302,80.273,11.22]
[1770978853601,9.17410137,80.302,80.271,9.36875471]
[1770978854002,3.18005755,80.31,80.271,9.36875471]
[1770978854917,157.51410137,80.315,80.273,9.36875471]
[1770978855207,9.17410137,80.309,80.273,9.36875471]
[1770978855412,20.38930137,80.309,80.273,9.36875471]
[1770978859009,9.17410137,80.321,80.273,9.36875471]
[1770978859210,3.18005755,80.33,80.281,9.36875471]
[1770978859813,158.83410137,80.333,80.281,9.36875471]
[1770978860309,9.17410137,80.333,80.281,9.36875471]
[1770978860511,3.18005755,80.34,80.293,9.36875471]
[1770978860512,9.17410137,80.339,80.293,9.36875471]
[1770978861412,9.17410137,80.366,80.301,9.36875471]
[1770978861720,3.18005755,80.36,80.311,9.36875471]
[1770978862212,3.18005755,80.36,80.321,20.58205471]
[1770978862417,3.18005755,80.36,80.321,9.36875471]
[1770978862817,9.17410137,80.349,80.307,9.36875471]
[1770978863814,11.2097,80.348,80.307,9.36875471]
[1770978864016,3.18005755,80.36,80.311,9.36875471]
[1770978864718,3.18005755,80.36,80.321,11.2133]
[1770978864919,3.18005755,80.36,80.322,9.36875471]
[1770978866010,14.38805755,80.36,80.322,9.36875471]
[1770978866215,3.18005755,80.35,80.322,9.36875471]
[1770978866415,14.38805755,80.36,80.322,9.36875471]
[1770978867220,3.18005755,80.35,80.322,9.36875471]
[1770978867417,14.38805755,80.36,80.322,9.36875471]
[1770978867817,3.18005755,80.35,80.31,9.36875471]
[1770978868716,3.18005755,80.35,80.312,11.2146]
[1770978868915,3.18005755,80.35,80.313,9.36875471]
[1770978869715,20.38380137,80.348,80.313,9.36875471]
[1770978869917,3.18005755,80.35,80.313,9.36875471]
[1770978870214,3.18005755,80.34,80.291,9.36875471]
[1770978870622,3.18005755,80.34,80.3,3.18005755]
[1770978870814,3.18005755,80.34,80.301,8.94824504]
[1770978871822,3.18005755,80.34,80.302,8.94824504]
[1770978872122,11.2096,80.348,80.302,8.94824504]
[1770978872712,3.18005755,80.36,80.314,8.94824504]
[1770978872914,3.18005755,80.37,80.321,8.94824504]
[1770978873315,3.18005755,80.37,80.332,8.94824504]
[1770978873626,3.18005755,80.36,80.332,8.94824504]
[1770978873825,3.18005755,80.37,80.332,8.94824504]
[1770978874617,3.18005755,80.35,80.316,8.94824504]
[1770978876420,11.2096,80.348,80.316,8.94824504]
[1770978876820,3.18005755,80.34,80.301,11.216]
[1770978877021,3.18005755,80.34,80.302,9.53326922]
[1770978878622,20.18610624,80.338,80.302,9.53326922]
[1770978878821,3.18005755,80.33,80.297,11.2167]
[1770978879127,3.18005755,80.34,80.298,9.53326922]
[1770978879323,12.15506379,80.35,80.307,9.53326922]
[1770978880725,23.36446379,80.35,80.311,11.2147]
[1770978882627,3.18005755,80.34,80.311,11.2147]
[1770978882828,3.18005755,80.34,80.307,9.53326922]
[1770978884530,3.18005755,80.33,80.297,11.2166]
[1770978885625,12.15506379,80.33,80.297,11.2166]
[1770978885831,8.97500624,80.329,80.297,11.2166]
[1770978887219,118.4,80.36,80.29,9.53326922]
[1770978887220,3.18005755,80.32,80.29,9.53326922]
[1770978887420,8.97500624,80.326,80.29,9.53326922]
[1770978887620,3.18005755,80.33,80.29,9.53326922]
[1770978888529,11.2118,80.333,80.295,20.75016922]
[1770978888834,12.15506379,80.35,80.301,9.53326922]
[1770978889533,8.97500624,80.35,80.301,9.53326922]
[1770978889734,11.2094,80.35,80.311,9.53326922]
[1770978893027,14.38945755,80.35,80.311,9.53326922]
[1770978893738,3.18005755,80.34,80.302,11.2159]
[1770978893935,3.18005755,80.34,80.298,9.53326922]
[1770978895334,8.97500624,80.337,80.3,11.2162]
[1770978895638,8.97500624,80.337,80.281,9.53326922]
[1770978895838,8.97500624,80.337,80.29,3.18005755]
[1770978896134,11.2113,80.336,80.301,11.2161]
[1770978896825,8.97500624,80.337,80.301,11.2161]
[1770978898030,11.2093,80.351,80.311,9.53326922]
[1770978898231,3.18005755,80.35,80.311,9.53326922]
[1770978898428,11.2093,80.351,80.311,9.53326922]
[1770978899034,20.18510624,80.345,80.305,11.2155]
[1770978899227,3.18005755,80.34,80.305,11.2155]
[1770978899835,3.18005755,80.34,80.312,11.2146]
[1770978900039,3.18005755,80.35,80.313,9.53326922]
[1770978900440,8.97500624,80.349,80.313,9.53326922]
[1770978900642,3.18005755,80.34,80.312,11.2146]
[1770978901243,3.18005755,80.34,80.299,8.70622879]
[1770978901244,11.2114,80.336,80.301,11.2162]
[1770978901440,20.03201497,80.336,80.301,11.2162]
[1770978901746,8.82061497,80.335,80.299,8.70622879]
[1770978901947,3.18005755,80.33,80.301,11.2162]
[1770978902438,20.03011497,80.349,80.31,11.2149]
[1770978902649,8.82061497,80.349,80.303,8.70622879]
[1770978902837,8.82061497,80.378,80.303,8.70622879]
[1770978903037,99.36,80.379,80.32,11.2135]
[1770978903038,12.00067252,80.36,80.32,11.2135]
[1770978903239,8.82061497,80.359,80.32,11.2135]
[1770978903437,8.82061497,80.346,80.296,15.1085979]
[1770978903641,8.82061497,80.339,80.289,8.70622879]
[1770978904042,8.82061497,80.339,80.291,8.70622879]
[1770978904743,8.82061497,80.339,80.301,11.2161]
[1770978907454,3.18005755,80.33,80.301,11.2161]
[1770978907750,8.82061497,80.339,80.29,3.18005755]
[1770978907944,8.82061497,80.339,80.291,8.70622879]
[1770978908647,20.03171497,80.338,80.296,11.2169]
[1770978908844,8.82061497,80.329,80.291,8.70622879]
[1770978909046,3.18005755,80.32,80.291,8.70622879]
[1770978909449,12.00067252,80.32,80.287,11.2181]
[1770978909948,8.82061497,80.319,80.287,11.2181]
[1770978910643,8.82061497,80.309,80.271,8.70622879]
[1770978910839,8.82061497,80.309,80.261,8.70622879]
[1770978911440,8.82061497,80.321,80.279,8.70622879]
[1770978911640,3.18005755,80.33,80.281,8.70622879]
[1770978911841,8.82061497,80.334,80.281,8.70622879]
[1770978912454,8.82061497,80.334,80.291,8.70622879]
[1770978912854,20.03221497,80.334,80.291,8.70622879]
[1770978913350,11.2104,80.343,80.304,11.2157]
[1770978913549,11.2104,80.343,80.304,19.92192879]
[1770978913758,8.82061497,80.346,80.305,8.70622879]
[1770978914344,8.82061497,80.346,80.316,11.214]
[1770978914551,8.82061497,80.359,80.311,8.70622879]
[1770978916052,3.17602179,80.35,80.311,8.70622879]
[1770978916956,3.17602179,80.35,80.316,11.214]
[1770978917358,8.82061497,80.359,80.322,11.2132]
[1770978917764,8.82061497,80.359,80.311,8.70622879]
[1770978918657,3.17602179,80.38,80.331,8.70622879]
[1770978918849,3.17602179,80.37,80.331,8.70622879]
[1770978919048,8.82061497,80.369,80.321,8.70622879]
[1770978919861,11.2069,80.368,80.329,11.2122]
[1770978920056,8.82061497,80.369,80.321,8.70622879]
[1770978920763,8.82061497,80.369,80.335,11.2114]
[1770978922356,8.82061497,80.369,80.328,11.2123]
[1770978922864,8.82061497,80.369,80.328,19.91852879]
[1770978923258,8.82061497,80.369,80.334,11.2116]
[1770978923863,8.82061497,80.369,80.32,3.17602179]
[1770978924259,8.82061497,80.369,80.321,8.70622879]
[1770978924565,11.2054,80.379,80.331,8.70622879]
[1770978925565,20.02601497,80.379,80.331,8.70622879]
[1770978925771,20.02601497,80.379,80.341,11.2106]
[1770978926159,3.17602179,80.38,80.342,8.70622879]
[1770978927172,11.2055,80.378,80.342,8.70622879]
[1770978927361,3.17602179,80.37,80.339,11.2108]
[1770978928268,11.99663676,80.37,80.339,11.2108]
[1770978933476,8.82061497,80.37,80.339,11.2108]
[1770978933671,11.99663676,80.37,80.339,11.2108]
[1770978936069,8.82061497,80.37,80.344,11.2101]
[1770978936775,11.99663676,80.37,80.344,11.2101]
[1770978940277,3.17602179,80.38,80.34,7.93107298]
[1770978940679,3.17602179,80.38,80.351,11.2091]
[1770978940885,8.20099737,80.379,80.351,11.2091]
[1770978942274,8.20099737,80.377,80.316,7.93107298]
[1770978942479,8.20099737,80.359,80.316,7.93107298]
[1770978943884,8.20099737,80.359,80.332,11.2118]
[1770978944273,3.17602179,80.36,80.335,11.2114]
[1770978944579,11.2068,80.369,80.335,11.2114]
[1770978945577,3.17602179,80.38,80.341,7.93107298]
[1770978945877,3.17602179,80.37,80.321,7.93107298]
[1770978946183,8.20099737,80.369,80.321,7.93107298]
[1770978946683,8.20099737,80.369,80.338,11.2109]
[1770978947885,11.2072,80.366,80.331,7.93107298]
[1770978948186,8.20099737,80.365,80.331,7.93107298]
[1770978951585,11.2084,80.357,80.331,7.93107298]
[1770978951784,3.17602179,80.36,80.331,7.93107298]
[1770978952289,8.20099737,80.365,80.331,7.93107298]
[1770978952789,11.2076,80.363,80.332,11.2118]
[1770978953186,8.20099737,80.362,80.332,11.2118]
[1770978953391,8.20099737,80.359,80.326,11.2126]
[1770978955297,8.20099737,80.359,80.332,11.2118]
[1770978955598,8.20099737,80.359,80.321,7.93107298]
[1770978956793,8.20099737,80.359,80.325,11.2127]
[1770978957698,8.20099737,80.359,80.326,7.93107298]
[1770978961698,8.20099737,80.359,80.327,11.2125]
[1770978962194,3.17602179,80.35,80.315,8.04832989]
[1770978962401,11.2088,80.354,80.317,8.04832989]
[1770978962599,7.35717478,80.353,80.317,8.04832989]
[1770978962800,7.35717478,80.353,80.316,11.2141]
[1770978963397,11.2091,80.352,80.316,11.2141]
[1770978963602,18.56627478,80.352,80.316,11.2141]
[1770978965196,18.56627478,80.352,80.317,8.04832989]
[1770978965906,7.35717478,80.352,80.318,19.26202989]
[1770978966103,7.35717478,80.352,80.319,8.04832989]
[1770978966705,11.2083,80.358,80.32,11.2135]
[1770978967007,11.2083,80.358,80.321,8.04832989]
[1770978967701,11.2072,80.366,80.323,8.04832989]
[1770978967908,18.56437478,80.366,80.323,8.04832989]
[1770978968611,11.208,80.36,80.323,8.04832989]
[1770978970806,21.74119657,80.36,80.323,8.04832989]
[1770978971010,11.2083,80.358,80.323,8.04832989]
[1770978972508,18.56717478,80.346,80.312,8.04832989]
[1770978972804,7.35717478,80.346,80.312,8.04832989]
[1770978973004,7.35717478,80.346,80.313,11.2145]
[1770978973204,7.35717478,80.346,80.313,19.26282989]
[1770978974000,7.35717478,80.346,80.316,8.04832989]
[1770978975810,7.35717478,80.346,80.317,11.2139]
[1770978977405,7.35717478,80.353,80.317,19.26222989]
[1770978980119,3.1749552,80.37,80.321,8.04832989]
[1770978980815,10.53212998,80.37,80.321,8.04832989]
[1770978981012,7.35717478,80.369,80.321,8.04832989]
[1770978981605,11.2077,80.362,80.323,8.04832989]
[1770978982710,11.2077,80.362,80.324,11.2129]
[1770978982911,169.1665,80.395,80.312,15.1085979]
[1770978982912,3.1749552,80.35,80.312,15.1085979]
[1770978983113,7.35717478,80.349,80.305,8.04832989]
[1770978983610,7.35717478,80.339,80.298,15.1085979]
[1770978983827,7.35717478,80.339,80.294,8.04832989]
[1770978984721,11.2117,80.334,80.294,19.26542989]
[1770978984917,3.1749552,80.33,80.295,8.04832989]
[1770978985511,11.2126,80.327,80.287,198.46376472]
[1770978985715,7.35717478,80.319,80.287,198.46376472]
[1770978986011,7.35717478,80.319,80.287,187.24576472]
[1770978986610,7.35717478,80.319,80.292,11.2173]
[1770978986912,7.35717478,80.329,80.292,11.2173]
[1770978988121,11.2125,80.328,80.292,11.2173]
[1770978989422,7.35717478,80.329,80.297,11.2166]
[1770978990313,11.2125,80.328,80.289,11.2177]
[1770978990621,18.32542012,80.328,80.29,8.04832989]
[1770978991820,18.32542012,80.328,80.293,11.2173]
[1770978992824,7.11292012,80.327,80.293,11.2173]
[1770978997029,7.11292012,80.327,80.296,11.2168]
[1770978998521,3.1749552,80.32,80.284,349.91450178]
[1770978998829,7.27990573,80.319,80.284,349.91450178]
[1770978999231,7.27990573,80.311,80.276,11.2196]
[1770979001139,7.27990573,80.309,80.276,11.2196]
[1770979002236,7.27990573,80.309,80.276,18.46730936]
[1770979002435,7.27990573,80.299,80.259,11.222]
[1770979002635,7.27990573,80.299,80.26,7.24770936]
[1770979002837,11.2156,80.306,80.261,7.24770936]
[1770979003140,18.49550573,80.306,80.261,7.24770936]
[1770979003331,18.49550573,80.306,80.26,3.1749552]
[1770979003332,7.27990573,80.306,80.268,7.24770936]
[1770979004638,11.2145,80.313,80.277,7.24770936]
[1770979005038,7.27990573,80.316,80.277,7.24770936]
[1770979005936,7.27990573,80.316,80.276,11.2196]
[1770979005937,7.27990573,80.327,80.283,7.24770936]
[1770979006539,7.27990573,80.327,80.295,18.46460936]
[1770979006843,7.27990573,80.338,80.296,7.24770936]
[1770979007736,7.27990573,80.335,80.296,7.24770936]
[1770979008731,7.27990573,80.333,80.295,11.2169]
[1770979013032,7.27990573,80.333,80.297,18.46440936]
[1770979013241,7.27990573,80.333,80.298,7.24770936]
[1770979017034,7.27990573,80.333,80.298,18.46420936]
[1770979017240,7.27990573,80.333,80.298,7.24770936]
[1770979017634,7.27990573,80.333,80.304,11.2157]
[1770979017840,7.27990573,80.345,80.305,7.24770936]
[1770979018035,11.2094,80.35,80.31,3.1749552]
[1770979018248,11.2094,80.35,80.311,7.24770936]
[1770979019747,11.2094,80.35,80.313,7.24770936]
[1770979020042,18.48930573,80.35,80.313,7.24770936]
[1770979022744,6.65250348,80.347,80.301,6.64661187]
[1770979023344,6.65250348,80.347,80.311,6.64661187]
[1770979025851,6.65250348,80.347,80.314,6.64661187]
[1770979026446,6.65250348,80.339,80.296,17.86341187]
[1770979026647,6.65250348,80.339,80.297,6.64661187]
[1770979027751,6.65250348,80.335,80.297,6.64661187]
[1770979028959,6.65250348,80.335,80.298,11.2166]
[1770979029340,6.65250348,80.335,80.29,3.1749552]
[1770979029341,6.65250348,80.33,80.292,6.64661187]
[1770979030350,6.65250348,80.328,80.292,6.64661187]
[1770979030554,6.65250348,80.328,80.287,11.218]
[1770979031747,6.65250348,80.326,80.287,11.218]
[1770979035556,6.65250348,80.325,80.287,11.218]
[1770979037862,6.65250348,80.323,80.287,11.218]
[1770979038463,3.17699795,80.32,80.287,11.218]
[1770979038764,6.65250348,80.323,80.287,11.218]
[1770979043566,6.65250348,80.323,80.287,17.86461187]
[1770979044172,6.65250348,80.323,80.29,11.2177]
[1770979044964,11.2133,80.322,80.288,6.64661187]
[1770979045371,6.65250348,80.323,80.288,6.64661187]
[1770979046867,6.65250348,80.323,80.29,6.64661187]
[1770979047775,6.65250348,80.323,80.291,11.2175]
[1770979048774,6.65250348,80.323,80.291,17.86411187]
[1770979049079,3.17699795,80.32,80.285,6.64661187]
[1770979049678,6.65250348,80.321,80.285,6.64661187]
[1770979049876,6.65250348,80.321,80.287,6.64661187]
[1770979050882,6.65250348,80.321,80.295,11.2169]
[1770979051878,3.17699795,80.33,80.296,6.60294357]
[1770979052182,6.83107909,80.329,80.296,6.60294357]
[1770979054683,6.83107909,80.329,80.295,11.2169]
[1770979054886,6.83107909,80.327,80.289,11.2178]
[1770979055186,6.53401366,80.319,80.289,11.2178]
[1770979058986,6.53401366,80.329,80.3,6.36955689]
[1770979069601,272.67654933,80.815,80.308,6.36955689]
[1770979069602,6.53401366,80.348,80.308,6.36955689]
[1770979069785,3.17699795,80.33,80.298,6.36955689]
[1770979070191,6.53401366,80.339,80.298,6.36955689]
[1770979070799,6.53401366,80.339,80.299,11.2164]
[1770979070996,6.53401366,80.339,80.282,15.1085979]
[1770979071195,6.53401366,80.329,80.283,6.36955689]
[1770979071997,6.53401366,80.319,80.283,6.36955689]
[1770979072494,6.53401366,80.319,80.291,11.2175]
[1770979075098,6.53401366,80.319,80.283,6.36955689]
[1770979076701,6.53401366,80.319,80.29,11.2177]
[1770979077102,6.53401366,80.309,80.268,6.36955689]
[1770979077502,6.53401366,80.309,80.25,3.17699795]
[1770979077503,6.53401366,80.299,80.261,11.2217]
[1770979077894,6.53401366,80.299,80.258,6.36955689]
[1770979078094,6.53401366,80.299,80.268,6.36955689]
[1770979081698,6.08474342,80.296,80.258,6.33048934]
[1770979081894,6.08474342,80.289,80.245,6.33048934]
[1770979082799,17.30264342,80.289,80.253,6.33048934]
[1770979083704,17.30264342,80.289,80.254,11.2227]
[1770979083897,17.30264342,80.289,80.254,17.55318934]
[1770979084094,6.08474342,80.289,80.255,6.33048934]
[1770979084602,3.17699795,80.3,80.255,6.33048934]
[1770979084999,9.26174137,80.3,80.262,6.33048934]
[1770979085797,6.08474342,80.3,80.262,6.33048934]
[1770979086102,6.08474342,80.3,80.265,6.33048934]
[1770979087805,17.30124342,80.299,80.265,6.33048934]
[1770979088005,6.08474342,80.298,80.265,6.33048934]
[1770979088910,6.08474342,80.298,80.267,11.2208]
[1770979091605,6.08474342,80.298,80.267,17.55128934]
[1770979093907,6.08474342,80.298,80.267,11.2208]
[1770979094103,6.08474342,80.289,80.254,11.2226]
[1770979095703,17.30354342,80.283,80.246,6.33048934]
[1770979095905,6.08474342,80.282,80.246,6.33048934]
[1770979096210,6.08474342,80.279,80.236,6.33048934]
[1770979097711,6.08474342,80.279,80.244,11.2241]
[1770979098103,3.18009425,80.28,80.244,11.2241]
[1770979098104,6.08474342,80.277,80.244,11.2241]
[1770979098305,6.08474342,80.277,80.231,361.03009462]
[1770979098504,6.08474342,80.269,80.231,361.03009462]
[1770979098904,6.08474342,80.269,80.23,11.2261]
[1770979099813,6.08474342,80.268,80.23,11.2261]
[1770979101611,6.08474342,80.268,80.234,11.2255]
[1770979101807,6.08474342,80.268,80.234,17.55598934]
[1770979103915,6.08474342,80.268,80.235,6.33048934]
[1770979109014,6.08474342,80.268,80.234,11.2255]
[1770979110810,6.08474342,80.268,80.234,17.2900389]
[1770979114320,6.56070467,80.264,80.234,17.2900389]
[1770979114519,6.56070467,80.264,80.234,6.0645389]